fUST/lending_fUST_20240517
["ID","MTS","AMOUNT","RATE_DAILY","PERIOD"]
[327172222,1715875291557,200.0,0.00025395,120]
[327172223,1715875353512,200.0,0.00025383,120]
[327172232,1715875625171,-547.48105,0.00015241,2]
[327172233,1715875625192,-581.39751116,0.00015333,2]
[327172234,1715875625214,-597.4521166,0.00015547,2]
[327172235,1715875625234,-14810.0,0.00016,2]
[327172236,1715875625257,-2376.58103262,0.00016258,2]
[327172259,1715875832606,-621.23650208,0.00016083,2]
[327172260,1715875832615,-182.25292528,0.00016338,2]
[327172261,1715875832624,-940.23972476,0.00016436,2]
[327172262,1715875832633,-168.47619748,0.00016436,2]
[327172263,1715875832643,-518.32668191,0.00016437,2]
[327172264,1715875832652,-500.0,0.00016438,2]
[327172265,1715875832661,-500.0,0.00016438,2]
[327172266,1715875832670,-500.0,0.00016438,2]
[327172268,1715875832679,-500.0,0.00016438,2]
[327172270,1715875832688,-500.0,0.00016438,2]
[327172272,1715875832697,-500.0,0.00016438,2]
[327172274,1715875832706,-500.0,0.00016438,2]
[327172276,1715875832715,-500.0,0.00016438,2]
[327172277,1715875832723,-500.0,0.00016438,2]
[327172278,1715875832732,-500.0,0.00016438,2]
[327172279,1715875832741,-500.0,0.00016438,2]
[327172280,1715875832750,-500.0,0.00016438,2]
[327172281,1715875832760,-505.74,0.00016438,2]
[327172282,1715875832769,-500.0,0.00016438,2]
[327172283,1715875832778,-500.0,0.00016438,2]
[327172284,1715875832788,-500.0,0.00016438,2]
[327172285,1715875832796,-500.0,0.00016438,2]
[327172286,1715875832806,-549.62,0.00016438,2]
[327172287,1715875832815,-500.0,0.00016438,2]
[327172288,1715875832823,-500.0,0.00016438,2]
[327172290,1715875832832,-500.0,0.00016438,2]
[327172291,1715875832842,-500.0,0.00016438,2]
[327172292,1715875832851,-159.22571802,0.00016438,2]
[327172293,1715875832860,-977.39,0.00016438,2]
[327172294,1715875832870,-500.0,0.00016438,2]
[327172295,1715875832879,-500.0,0.00016438,2]
[327172296,1715875832888,-500.0,0.00016438,2]
[327172297,1715875832899,-500.0,0.00016438,2]
[327172298,1715875832908,-500.0,0.00016438,2]
[327172299,1715875832917,-500.0,0.00016438,2]
[327172300,1715875832926,-500.0,0.00016438,2]
[327172301,1715875832937,-500.0,0.00016438,2]
[327172302,1715875832949,-544.72,0.00016438,2]
[327172303,1715875832958,-500.0,0.00016438,2]
[327172304,1715875832969,-500.0,0.00016438,2]
[327172305,1715875832979,-500.0,0.00016438,2]
[327172306,1715875832988,-619.79,0.00016438,2]
[327172307,1715875832997,-500.0,0.00016438,2]
[327172308,1715875833007,-250.2,0.00016438,2]
[327172309,1715875833021,-500.0,0.00016438,2]
[327172310,1715875833031,-500.0,0.00016438,2]
[327172311,1715875833041,-500.0,0.00016438,2]
[327172312,1715875833050,-500.0,0.00016438,2]
[327172313,1715875833059,-500.0,0.00016438,2]
[327172314,1715875833069,-500.0,0.00016438,2]
[327172315,1715875833078,-500.0,0.00016438,2]
[327172316,1715875833088,-500.0,0.00016438,2]
[327172317,1715875833101,-500.0,0.00016438,2]
[327172318,1715875833111,-1262.46,0.00016438,2]
[327172319,1715875833120,-279.60453826,0.00016438,2]
[327172320,1715875833129,-500.0,0.00016438,2]
[327172321,1715875833139,-500.0,0.00016438,2]
[327172322,1715875833148,-500.0,0.00016438,2]
[327172323,1715875833157,-500.0,0.00016438,2]
[327172324,1715875833167,-500.0,0.00016438,2]
[327172325,1715875833176,-1098.37,0.00016438,2]
[327172326,1715875833186,-500.0,0.00016438,2]
[327172327,1715875833195,-1078.51,0.00016438,2]
[327172328,1715875833205,-177.45,0.00016438,2]
[327172329,1715875833215,-500.0,0.00016438,2]
[327172330,1715875833224,-500.0,0.00016438,2]
[327172331,1715875833233,-500.0,0.00016438,2]
[327172332,1715875833242,-500.0,0.00016438,2]
[327172333,1715875833252,-500.0,0.00016438,2]
[327172334,1715875833261,-500.0,0.00016438,2]
[327172335,1715875833270,-500.0,0.00016438,2]
[327172336,1715875833280,-500.0,0.00016438,2]
[327172337,1715875833291,-500.0,0.00016438,2]
[327172338,1715875833302,-500.0,0.00016438,2]
[327172339,1715875833311,-1001.71,0.00016438,2]
[327172340,1715875833321,-887.65,0.00016438,2]
[327172341,1715875833331,-500.0,0.00016438,2]
[327172342,1715875833341,-500.0,0.00016438,2]
[327172343,1715875833350,-635.29,0.00016438,2]
[327172344,1715875833359,-699.94,0.00016438,2]
[327172345,1715875833368,-500.0,0.00016438,2]
[327172346,1715875833377,-655.44,0.00016438,2]
[327172347,1715875833387,-978.98,0.00016438,2]
[327172348,1715875833396,-546.25,0.00016438,2]
[327172349,1715875833405,-536.42,0.00016438,2]
[327172350,1715875833415,-539.22,0.00016438,2]
[327172351,1715875833425,-500.0,0.00016438,2]
[327172352,1715875833434,-500.0,0.00016438,2]
[327172353,1715875833445,-500.0,0.00016438,2]
[327172354,1715875833455,-500.0,0.00016438,2]
[327172355,1715875833465,-500.0,0.00016438,2]
[327172356,1715875833476,-950.4,0.00016438,2]
[327172357,1715875833486,-821.59,0.00016438,2]
[327172358,1715875833495,-185.08029803,0.00016438,2]
[327172399,1715875838648,-314.91970197,0.00016438,2]
[327172400,1715875838657,-500.0,0.00016438,2]
[327172401,1715875838666,-500.0,0.00016438,2]
[327172402,1715875838676,-500.0,0.00016438,2]
[327172403,1715875838685,-0.27926615,0.00016438,2]
[327172428,1715875840665,-499.72073385,0.00016438,2]
[327172429,1715875840674,-472.27926615,0.00016438,2]
[327172442,1715875843592,-27.72073385,0.00016438,2]
[327172443,1715875843601,-423.79527844,0.00016438,2]
[327172444,1715875843613,-76.20472156,0.00016438,2]
[327172445,1715875843622,-267.5406248,0.00016438,2]
[327172447,1715875843633,-481.9793752,0.00016438,2]
[327172448,1715875843642,-500.0,0.00016438,2]
[327172449,1715875843652,-512.8691093,0.00016438,2]
[327172451,1715875843660,-1944.89,0.00016438,2]
[327172452,1715875843669,-500.0,0.00016438,2]
[327172453,1715875843678,-500.0,0.00016438,2]
[327172454,1715875843687,-483.74053885,0.00016438,2]
[327172455,1715875843698,-365.000015,0.00016438,2]
[327172456,1715875843709,-167.41944615,0.00016438,2]
[327172457,1715875843718,-538.67,0.00016438,2]
[327172458,1715875843727,-500.0,0.00016438,2]
[327172459,1715875843735,-500.0,0.00016438,2]
[327172460,1715875843746,-535.59,0.00016438,2]
[327172461,1715875843755,-613.55,0.00016438,2]
[327172462,1715875843766,-191.27055385,0.00016438,2]
[327172691,1715876613670,835.23423422,9.999e-05,2]
[327172692,1715876666848,19244.4396903,9.999e-05,2]
[327172693,1715876686994,16781.58676299,9.999e-05,2]
[327172694,1715876687017,2462.85292731,9.999e-05,2]
[327172695,1715876700850,19244.4396903,9.999e-05,2]
[327172696,1715876722840,19244.4396903,9.999e-05,2]
[327172697,1715876740852,19244.4396903,9.999e-05,2]
[327172700,1715876764852,16309.8937723,9.999e-05,2]
[327172703,1715876842112,-1762.648447,0.0001525,2]
[327172704,1715876842133,-273.740525,0.00015292,2]
[327172705,1715876842154,-2501.48188324,0.00016,2]
[327172706,1715876842174,-4220.67206101,0.0001617,2]
[327172707,1715876842194,-150.0,0.00016177,2]
[327172708,1715876842215,-498.09871863,0.00016273,2]
[327172709,1715876842240,-1042.60704695,0.00016336,2]
[327172710,1715876842260,-284.82796556,0.00016336,2]
[327172711,1715876842281,-194.31391805,0.00016336,2]
[327172712,1715876842303,-53802.53392499,0.00016338,2]
[327172760,1715877032961,-273.740525,0.00015422,2]
[327172762,1715877032971,-159.47130962,0.000163,2]
[327172764,1715877032980,-1127.87511667,0.00016337,2]
[327172767,1715877032995,-3001.17694816,0.00016337,2]
[327173362,1715877038936,-130.77586341,0.00016337,2]
[327173618,1715877042267,-2808.86736692,0.00016337,2]
[327173620,1715877042277,-19044.85024308,0.00016338,2]
[327174213,1715877047999,-520.430295,0.00016338,2]
[327174218,1715877048035,-4579.85030908,0.00016338,2]
[327174223,1715877048070,-8344.16244295,0.00016338,2]
[327174225,1715877048079,-4942.15813539,0.000164,3]
[327174227,1715877048090,-2000.0,0.000164,2]
[327174229,1715877048099,-834.55116504,0.00016436,2]
[327174231,1715877048109,-236.36877291,0.00016436,2]
[327174233,1715877048118,-315.84581765,0.00016436,2]
[327174235,1715877048128,-5677.694401,0.00016436,2]
[327174237,1715877048137,-154.81422293,0.00016436,2]
[327174239,1715877048146,-497.85601528,0.00016436,2]
[327174241,1715877048156,-1117.80164826,0.00016437,2]
[327174243,1715877048165,-1767.37376792,0.00016437,2]
[327174245,1715877048174,-500.0,0.00016438,2]
[327174247,1715877048183,-500.0,0.00016438,2]
[327174249,1715877048192,-500.0,0.00016438,2]
[327174251,1715877048201,-500.0,0.00016438,2]
[327174253,1715877048210,-500.0,0.00016438,2]
[327174255,1715877048219,-500.0,0.00016438,2]
[327174257,1715877048228,-151.0,0.00016438,2]
[327174259,1715877048237,-500.0,0.00016438,2]
[327174261,1715877048246,-151.0,0.00016438,2]
[327174263,1715877048256,-151.683719,0.00016438,2]
[327174265,1715877048266,-500.0,0.00016438,2]
[327174267,1715877048275,-151.0,0.00016438,2]
[327174269,1715877048284,-500.0,0.00016438,2]
[327174271,1715877048294,-152.920149,0.00016438,2]
[327174273,1715877048303,-500.0,0.00016438,2]
[327174275,1715877048312,-1052.61,0.00016438,2]
[327174277,1715877048321,-1020.7,0.00016438,2]
[327174279,1715877048333,-500.0,0.00016438,2]
[327174281,1715877048342,-500.0,0.00016438,2]
[327174283,1715877048352,-500.0,0.00016438,2]
[327174285,1715877048360,-500.0,0.00016438,2]
[327174287,1715877048369,-185.74490146,0.00016438,2]
[327174289,1715877048379,-564.66997172,0.00016438,2]
[327174291,1715877048390,-500.0,0.00016438,2]
[327174293,1715877048402,-552.77,0.00016438,2]
[327174296,1715877048412,-500.0,0.00016438,2]
[327174297,1715877048421,-500.0,0.00016438,2]
[327174299,1715877048431,-151.0,0.00016438,2]
[327174302,1715877048440,-151.780699,0.00016438,2]
[327174303,1715877048450,-239.96539612,0.00016438,2]
[327174305,1715877048459,-500.0,0.00016438,2]
[327174307,1715877048471,-282.63468857,0.00016438,2]
[327174311,1715877048492,-217.36531143,0.00016438,2]
[327174313,1715877048501,-500.0,0.00016438,2]
[327174315,1715877048510,-500.0,0.00016438,2]
[327174317,1715877048519,-77.06902035,0.00016438,2]
[327174494,1715877129785,260.28239544,9.999e-05,2]
[327174495,1715877129812,67.93900374,9.999e-05,2]
[327174496,1715877190759,1094.64720294,9.999e-05,2]
[327174499,1715877318878,194.39143777,9.999e-05,2]
[327174500,1715877409189,523.0662339,9.999e-05,2]
[327174501,1715877448154,2155.5969214,9.999e-05,2]
[327174502,1715877448907,281.4171259,9.999e-05,2]
[327174503,1715877515609,154.88925414,9.999e-05,2]
[327174514,1715878036148,-251.4681512,0.00015299,2]
[327174515,1715878036172,-2596.45823948,0.00016271,2]
[327174516,1715878036193,-6467.76043712,0.00016272,2]
[327174583,1715878232679,-269.24912565,0.00016044,2]
[327174585,1715878232691,-350.81269946,0.00016044,2]
[327174587,1715878232700,-555.16745388,0.00016272,2]
[327174589,1715878232711,-569.0,0.00016272,2]
[327174592,1715878232730,-18607.76851032,0.00016272,2]
[327174595,1715878232739,-744.1195277,0.00016273,2]
[327174598,1715878232748,-1572.41438796,0.00016277,2]
[327174601,1715878232757,-505.63360043,0.00016335,2]
[327174604,1715878232770,-328.44704323,0.00016336,2]
[327174606,1715878232782,-328.44704321,0.00016337,2]
[327174609,1715878232791,-328.44704321,0.00016337,2]
[327174611,1715878232801,-328.44704321,0.00016338,2]
[327174613,1715878232810,-328.44704321,0.00016338,2]
[327174615,1715878232822,-2000.0,0.00016338,2]
[327174617,1715878232831,-408.1912961,0.0001637,2]
[327174619,1715878232840,-595.3962905,0.00016434,2]
[327174621,1715878232850,-379.19063668,0.00016434,2]
[327174622,1715878232859,-235.60642761,0.00016434,2]
[327174623,1715878232868,-2595.37774588,0.00016434,2]
[327174624,1715878232888,-238.60242952,0.00016434,2]
[327174625,1715878232898,-7891.96743066,0.00016435,2]
[327174626,1715878232908,-658.00018209,0.00016435,2]
[327174627,1715878232917,-16648.44126102,0.00016436,3]
[327174628,1715878232927,-1579.70306251,0.00016436,2]
[327174629,1715878232937,-527.88053844,0.00016436,2]
[327174630,1715878232947,-360.39204215,0.00016436,2]
[327174631,1715878232957,-998.76855331,0.00016436,2]
[327174632,1715878232967,-526.90246246,0.00016436,2]
[327174633,1715878232977,-315.49094957,0.00016436,2]
[327174634,1715878232986,-236.19809017,0.00016436,2]
[327174635,1715878232996,-155.99438912,0.00016436,2]
[327174636,1715878233005,-702.19428712,0.00016436,2]
[327174637,1715878233017,-1369.76858121,0.00016436,2]
[327174638,1715878233030,-1388.4360769,0.00016436,2]
[327174639,1715878233039,-420.82889366,0.00016436,2]
[327174640,1715878233049,-1896.9888826,0.00016436,2]
[327174641,1715878233058,-282.22276634,0.00016436,2]
[327174642,1715878233068,-493.63116231,0.00016436,2]
[327174643,1715878233078,-350.07606363,0.00016436,2]
[327174644,1715878233088,-217.55042293,0.00016436,2]
[327174645,1715878233098,-499.76802485,0.00016436,2]
[327174646,1715878233107,-1270.0,0.00016436,2]
[327174647,1715878233116,-498.542,0.00016436,2]
[327174648,1715878233125,-1117.80164826,0.00016436,2]
[327174649,1715878233135,-230.0349782,0.00016436,2]
[327174650,1715878233144,-194.03290422,0.00016436,2]
[327174651,1715878233153,-17534.26647853,0.00016436,2]
[327174661,1715878237944,-2698.213308,0.00016436,2]
[327174663,1715878237954,-10505.64077383,0.00016436,2]
[327174665,1715878237963,-415.65449111,0.00016436,2]
[327174667,1715878237972,-508.13523249,0.00016436,2]
[327174669,1715878237982,-2927.72348981,0.00016436,2]
[327174671,1715878237991,-10575.44133925,0.00016436,2]
[327174673,1715878238000,-308.0836265,0.00016436,2]
[327174675,1715878238009,-8737.86274285,0.00016436,2]
[327174677,1715878238019,-1884.87016128,0.00016436,2]
[327174678,1715878238028,-2655.09465861,0.00016436,2]
[327174680,1715878238037,-151.0,0.00016436,2]
[327174683,1715878238046,-151.0,0.00016436,2]
[327174684,1715878238056,-151.0,0.00016436,2]
[327174687,1715878238066,-254.78695,0.00016436,2]
[327174688,1715878238076,-151.0,0.00016436,2]
[327174690,1715878238085,-151.0,0.00016436,2]
[327174692,1715878238095,-151.0,0.00016436,2]
[327174695,1715878238107,-151.0,0.00016436,2]
[327174697,1715878238116,-151.0,0.00016436,2]
[327174699,1715878238125,-151.0,0.00016436,2]
[327174701,1715878238135,-405.348389,0.00016436,2]
[327174703,1715878238144,-405.348389,0.00016436,2]
[327174704,1715878238154,-405.348389,0.00016436,2]
[327174706,1715878238163,-405.348389,0.00016436,2]
[327174708,1715878238173,-317.033068,0.00016436,2]
[327174710,1715878238182,-317.033068,0.00016436,2]
[327174712,1715878238191,-151.0,0.00016436,2]
[327174714,1715878238200,-151.0,0.00016436,2]
[327174716,1715878238210,-317.033068,0.00016436,2]
[327174718,1715878238219,-317.033068,0.00016436,2]
[327174720,1715878238228,-151.0,0.00016436,2]
[327174722,1715878238237,-151.0,0.00016436,2]
[327174724,1715878238247,-151.0,0.00016436,2]
[327174726,1715878238256,-151.0,0.00016436,2]
[327174728,1715878238266,-151.097316,0.00016436,2]
[327174730,1715878238275,-151.0,0.00016436,2]
[327174732,1715878238284,-151.0,0.00016436,2]
[327174734,1715878238293,-151.0,0.00016436,2]
[327174736,1715878238302,-542.8,0.00016436,2]
[327174738,1715878238312,-542.8,0.00016436,2]
[327174740,1715878238322,-542.8,0.00016436,2]
[327174742,1715878238331,-542.8,0.00016436,2]
[327174744,1715878238340,-542.8,0.00016436,2]
[327174746,1715878238349,-542.8,0.00016436,2]
[327174748,1715878238360,-151.0,0.00016436,2]
[327174750,1715878238369,-151.0,0.00016436,2]
[327174752,1715878238378,-151.0,0.00016436,2]
[327174754,1715878238388,-313.502772,0.00016436,2]
[327174756,1715878238398,-313.502772,0.00016436,2]
[327174758,1715878238407,-313.502772,0.00016436,2]
[327174760,1715878238416,-313.502772,0.00016436,2]
[327174762,1715878238426,-313.502772,0.00016436,2]
[327174764,1715878238435,-313.502772,0.00016436,2]
[327174766,1715878238444,-313.502772,0.00016436,2]
[327174768,1715878238453,-313.502772,0.00016436,2]
[327174770,1715878238463,-151.0,0.00016436,2]
[327174772,1715878238473,-151.0,0.00016436,2]
[327174774,1715878238481,-151.0,0.00016436,2]
[327174776,1715878238490,-151.0,0.00016436,2]
[327174778,1715878238499,-151.0,0.00016436,2]
[327174779,1715878238509,-151.0,0.00016436,2]
[327174781,1715878238519,-584.66678309,0.00016437,2]
[327174784,1715878238529,-904.83466521,0.00016437,2]
[327174786,1715878238538,-834.89269963,0.00016437,2]
[327174788,1715878238548,-284.39174156,0.00016437,2]
[327174789,1715878238557,-151.0,0.00016437,2]
[327174791,1715878238567,-151.0,0.00016437,2]
[327174794,1715878238576,-151.0,0.00016437,2]
[327174796,1715878238585,-151.0,0.00016437,2]
[327174798,1715878238595,-151.73366,0.00016437,2]
[327174799,1715878238604,-421.254764,0.00016437,2]
[327174801,1715878238613,-151.0,0.00016437,2]
[327174803,1715878238623,-421.254764,0.00016437,2]
[327174805,1715878238632,-151.0,0.00016437,2]
[327174807,1715878238641,-70070.17807152,0.00016438,3]
[327174809,1715878238651,-2636.86271003,0.00016438,2]
[327174811,1715878238660,-896.58,0.00016438,2]
[327174813,1715878238669,-500.0,0.00016438,2]
[327174815,1715878238678,-500.0,0.00016438,2]
[327174817,1715878238687,-525.99372554,0.00016438,2]
[327174819,1715878238697,-500.0,0.00016438,2]
[327174821,1715878238706,-500.0,0.00016438,2]
[327174823,1715878238715,-555.79,0.00016438,2]
[327174825,1715878238724,-500.0,0.00016438,2]
[327174827,1715878238733,-500.0,0.00016438,2]
[327174829,1715878238743,-500.0,0.00016438,2]
[327174831,1715878238752,-500.0,0.00016438,2]
[327174833,1715878238761,-500.0,0.00016438,2]
[327174835,1715878238775,-500.0,0.00016438,2]
[327174837,1715878238784,-506.31154369,0.00016438,2]
[327174839,1715878238793,-151.0,0.00016438,2]
[327174841,1715878238803,-151.0,0.00016438,2]
[327174843,1715878238813,-151.0,0.00016438,2]
[327174845,1715878238823,-156.693943,0.00016438,2]
[327174847,1715878238832,-500.0,0.00016438,2]
[327174849,1715878238842,-500.0,0.00016438,2]
[327174851,1715878238853,-500.0,0.00016438,2]
[327174853,1715878238863,-186.03052124,0.00016438,2]
[327174855,1715878238873,-500.0,0.00016438,2]
[327174857,1715878238883,-500.0,0.00016438,2]
[327174859,1715878238891,-500.0,0.00016438,2]
[327174861,1715878238901,-501.65680694,0.00016438,2]
[327174863,1715878238910,-500.0,0.00016438,2]
[327174865,1715878238919,-500.0,0.00016438,2]
[327174867,1715878238929,-500.0,0.00016438,2]
[327174869,1715878238938,-500.0,0.00016438,2]
[327174871,1715878238947,-500.0,0.00016438,2]
[327174873,1715878238957,-500.0,0.00016438,2]
[327174875,1715878238966,-523.06165745,0.00016438,2]
[327174877,1715878238976,-500.0,0.00016438,2]
[327174879,1715878238986,-500.0,0.00016438,2]
[327174881,1715878238995,-506.18233428,0.00016438,2]
[327174883,1715878239004,-500.0,0.00016438,2]
[327174886,1715878239014,-500.0,0.00016438,2]
[327174888,1715878239025,-500.0,0.00016438,2]
[327174890,1715878239034,-500.0,0.00016438,2]
[327174891,1715878239044,-500.0,0.00016438,2]
[327174894,1715878239053,-500.0,0.00016438,2]
[327174895,1715878239063,-500.0,0.00016438,2]
[327174897,1715878239073,-500.0,0.00016438,2]
[327174899,1715878239083,-500.0,0.00016438,2]
[327174901,1715878239092,-500.0,0.00016438,2]
[327174904,1715878239101,-500.0,0.00016438,2]
[327174905,1715878239111,-500.0,0.00016438,2]
[327174907,1715878239120,-500.0,0.00016438,2]
[327174910,1715878239130,-500.0,0.00016438,2]
[327174911,1715878239140,-500.0,0.00016438,2]
[327174914,1715878239150,-500.0,0.00016438,2]
[327174915,1715878239160,-500.0,0.00016438,2]
[327174918,1715878239169,-500.0,0.00016438,2]
[327174920,1715878239180,-500.0,0.00016438,2]
[327174921,1715878239189,-696.3,0.00016438,2]
[327174923,1715878239199,-500.0,0.00016438,2]
[327174925,1715878239208,-500.0,0.00016438,2]
[327174928,1715878239218,-356.23489718,0.00016438,2]
[327174929,1715878239227,-500.0,0.00016438,2]
[327174931,1715878239236,-500.0,0.00016438,2]
[327174933,1715878239245,-500.0,0.00016438,2]
[327174935,1715878239254,-187.55691337,0.00016438,2]
[327174937,1715878239264,-500.0,0.00016438,2]
[327174939,1715878239276,-500.0,0.00016438,2]
[327174941,1715878239285,-192.61744948,0.00016438,2]
[327174943,1715878239294,-516.05,0.00016438,2]
[327174945,1715878239304,-500.0,0.00016438,2]
[327174947,1715878239313,-500.0,0.00016438,2]
[327174949,1715878239323,-500.0,0.00016438,2]
[327174951,1715878239332,-525.17663458,0.00016438,2]
[327174953,1715878239341,-500.0,0.00016438,2]
[327174955,1715878239351,-500.0,0.00016438,2]
[327174957,1715878239360,-500.0,0.00016438,2]
[327174959,1715878239369,-411.84503994,0.00016438,2]
[327174961,1715878239378,-500.0,0.00016438,2]
[327174963,1715878239387,-500.0,0.00016438,2]
[327174965,1715878239397,-500.0,0.00016438,2]
[327174967,1715878239406,-500.0,0.00016438,2]
[327174970,1715878239417,-500.0,0.00016438,2]
[327174972,1715878239426,-1007.08,0.00016438,2]
[327174974,1715878239436,-500.0,0.00016438,2]
[327174975,1715878239445,-500.0,0.00016438,2]
[327174977,1715878239454,-500.0,0.00016438,2]
[327174979,1715878239463,-500.89204277,0.00016438,2]
[327174981,1715878239473,-500.0,0.00016438,2]
[327174983,1715878239482,-500.0,0.00016438,2]
[327174985,1715878239491,-500.0,0.00016438,2]
[327174987,1715878239501,-1000.0,0.00016438,2]
[327175006,1715878239659,-500.0,0.00016438,2]
[327175009,1715878239670,-500.0,0.00016438,2]
[327175010,1715878239680,-500.0,0.00016438,2]
[327175011,1715878239689,-500.0,0.00016438,2]
[327175012,1715878239698,-1432.87,0.00016438,2]
[327175013,1715878239708,-557.0833262,0.00016438,2]
[327175014,1715878239718,-500.0,0.00016438,2]
[327175015,1715878239727,-500.0,0.00016438,2]
[327175016,1715878239736,-236.0808926,0.00016438,2]
[327175017,1715878239746,-500.44779418,0.00016438,2]
[327175018,1715878239755,-500.0,0.00016438,2]
[327175019,1715878239764,-517.62,0.00016438,2]
[327175020,1715878239778,-500.0,0.00016438,2]
[327175021,1715878239790,-500.0,0.00016438,2]
[327175022,1715878239799,-500.0,0.00016438,2]
[327175023,1715878239808,-500.0,0.00016438,2]
[327175024,1715878239817,-500.0,0.00016438,2]
[327175025,1715878239827,-500.0,0.00016438,2]
[327175026,1715878239836,-1208.2,0.00016438,2]
[327175027,1715878239846,-500.0,0.00016438,2]
[327175028,1715878239856,-500.0,0.00016438,2]
[327175029,1715878239866,-500.0,0.00016438,2]
[327175030,1715878239876,-500.0,0.00016438,2]
[327175031,1715878239885,-500.0,0.00016438,2]
[327175032,1715878239895,-500.0,0.00016438,2]
[327175033,1715878239905,-500.0,0.00016438,2]
[327175034,1715878239915,-500.0,0.00016438,2]
[327175035,1715878239924,-500.0,0.00016438,2]
[327175036,1715878239934,-500.0,0.00016438,2]
[327175037,1715878239944,-500.0,0.00016438,2]
[327175038,1715878239953,-500.0,0.00016438,2]
[327175039,1715878239962,-500.0,0.00016438,2]
[327175040,1715878239972,-506.67017468,0.00016438,2]
[327175042,1715878239982,-500.0,0.00016438,2]
[327175044,1715878239991,-500.0,0.00016438,2]
[327175046,1715878240000,-500.0,0.00016438,2]
[327175048,1715878240010,-628.13,0.00016438,2]
[327175050,1715878240022,-526.11989384,0.00016438,2]
[327175052,1715878240032,-500.0,0.00016438,2]
[327175054,1715878240041,-500.0,0.00016438,2]
[327175056,1715878240050,-500.0,0.00016438,2]
[327175058,1715878240059,-500.0,0.00016438,2]
[327175060,1715878240068,-151.0,0.00016438,2]
[327175062,1715878240078,-151.0,0.00016438,2]
[327175064,1715878240086,-151.0,0.00016438,2]
[327175066,1715878240096,-500.0,0.00016438,2]
[327175068,1715878240105,-151.0,0.00016438,2]
[327175070,1715878240114,-500.0,0.00016438,2]
[327175072,1715878240123,-151.0,0.00016438,2]
[327175074,1715878240133,-151.0,0.00016438,2]
[327175076,1715878240142,-151.0,0.00016438,2]
[327175078,1715878240151,-151.0,0.00016438,2]
[327175080,1715878240160,-151.0,0.00016438,2]
[327175082,1715878240170,-500.0,0.00016438,2]
[327175083,1715878240179,-151.0,0.00016438,2]
[327175086,1715878240189,-151.0,0.00016438,2]
[327175088,1715878240200,-151.0,0.00016438,2]
[327175090,1715878240209,-151.0,0.00016438,2]
[327175092,1715878240218,-500.0,0.00016438,2]
[327175094,1715878240227,-151.0,0.00016438,2]
[327175096,1715878240236,-260.90141,0.00016438,2]
[327175098,1715878240245,-500.0,0.00016438,2]
[327175100,1715878240254,-500.0,0.00016438,2]
[327175101,1715878240263,-771.05,0.00016438,2]
[327175104,1715878240274,-516.75,0.00016438,2]
[327175105,1715878240284,-959.97,0.00016438,2]
[327175107,1715878240293,-500.0,0.00016438,2]
[327175109,1715878240303,-151.0,0.00016438,2]
[327175111,1715878240312,-151.0,0.00016438,2]
[327175113,1715878240321,-327.83299677,0.00016438,2]
[327175115,1715878240330,-421.254764,0.00016438,2]
[327175117,1715878240340,-421.254764,0.00016438,2]
[327175119,1715878240348,-421.254764,0.00016438,2]
[327175121,1715878240357,-421.254764,0.00016438,2]
[327175123,1715878240367,-500.0,0.00016438,2]
[327175125,1715878240377,-421.254764,0.00016438,2]